[Event "Coimbra Queima Fitas Open 2024"]
[Site "Coimbra"]
[Date "2024.04.28"]
[Round "6.11"]
[White "Silva, Lourenco Santa Clara"]
[Black "Goncalves, Samuel Jesus Pereira"]
[Result "0-1"]
[ECO "C88"]
[WhiteElo "1893"]
[BlackElo "2190"]
[Annotator "TA"]
[PlyCount "134"]
[EventDate "2024.04.23"]
[EventType "swiss"]
[EventCountry "POR"]
[SourceTitle "playchess.com"]
[Source "ChessBase"]
[SourceQuality "1"]
[TimeControl "5400+30"]

{[%evp 27,134,2,14,35,25,5,28,-19,7,-51,-4,0,8,12,0,6,12,0,6,-24,-16,-95,-102,-177,-170,-191,-123,-206,-187,-271,-285,-295,-295,-350,-271,-492,-475,-447,-277,-459,34,33,32,42,29,25,52,35,64,50,78,47,58,21,24,23,32,25,101,94,96,105,134,66,53,0,0,0,13,0,0,0,0,-45,0,-45,0,-6,-4,-50,-4,-59,0,0,0,-28,0,-59,-59,-59,0,-11,0,0,0,-59,-59,-59,-59,-81,-81,-81,-81,-1228,-1165,-1007,-985,-3115,-2831]} 1. e4 {[%emt 0:04:05]} e5 {[%emt 0:00:08]} 2. Nf3 {[%emt 0:00:19]} Nc6 {[%emt 0:00:05]} 3. Bb5 {[%emt 0:00:04]} a6 {[%emt 0:00:05]} 4. Ba4 {[%emt 0:00:05]} Nf6 {[%emt 0:00:05]} 5. O-O {[%emt 0:00:05]} Be7 {[%emt 0:00:03]} 6. Re1 {[%emt 0:00:05]} b5 {[%emt 0:00:03]} 7. Bb3 {[%emt 0:00:03]} O-O {[%emt 0:00:06]} 8. a4 {[%emt 0:00:41]} Bb7 {[%emt 0:00:06]} 9. d3 {[%emt 0:00:54]} d6 {[%emt 0:00:09]} 10. c3 {[%emt 0:00:48]} Na5 {[%emt 0:00:05]} 11. Bc2 {[%emt 0:00:34]} c5 {[%emt 0:00:05]} 12. Nbd2 {[%emt 0:01:38]} Re8 $1 {[%emt 0:01:33] 12...Re8 is better than 12...Qc7. C88: Closed Ruy Lopez: Anti-Marshall Systems.} 13. Nf1 {[%emt 0:02:00]} Bf8 {[%emt 0:00:36] is the legacy move (13...h6).} 14. Ng3 {[%emt 0:07:53]} d5 {[%emt 0:02:07]} 15. exd5 {[%emt 0:12:44]} Qxd5 {[%emt 0:00:20]} 16. Bg5 {[%emt 0:04:42]} Qd6 {[%emt 0:07:43]} 17. h3 $146 {[%emt 0:12:19]} (17. Nf5 $142 Qd8 18. d4 (18. Nxe5 $2 Qd5 $19) (18. Rxe5 $2 Rxe5 19. Nxe5 Qd5 $19)) ({Predecessor:} 17. axb5 axb5 18. Nf5 Qc6 19. c4 Re6 20. cxb5 Qxb5 21. Nxe5 Qxb2 22. Rb1 Qa2 23. Rxb7 {1-0 Varga,Z (2535)-Galdunts,S (2450) Recklinghausen 1995 (5)}) 17... h6 {[%emt 0:08:18]} 18. Bd2 {[%emt 0:04:57]} (18. axb5 $11 axb5 19. Bd2) 18... c4 {[%emt 0:04:30]} (18... b4 $15 {might be stronger.}) 19. d4 $11 {[%emt 0:06:06]} Nc6 {[%emt 0:11:37]} 20. axb5 {[%emt 0:10:07]} axb5 {[%emt 0:00:14]} 21. Rxa8 {[%emt 0:00:21]} Bxa8 {[%emt 0:00:04]} 22. Nf5 {[%emt 0:00:48]} Qd5 {[%emt 0:00:42]} 23. Ne3 {[%emt 0:02:39]} Qd7 {[%emt 0:00:04]} 24. Nf5 {[%emt 0:05:29]} (24. Nxe5 $11 Nxe5 25. dxe5 Rxe5 26. b3) 24... e4 $17 {[%emt 0:03:44]} 25. d5 {[%emt 0:02:40]} (25. N3h4 $17) 25... Qxd5 $19 {[%emt 0:02:34]} (25... Qxf5 26. dxc6 Qd5 (26... Bxc6 27. Be3 $17) 27. Nd4 $17) 26. Ne3 {[%emt 0:01:28]} Qc5 {[%emt 0:02:15]} (26... Qd7 $19 27. Nd4 Nxd4 28. cxd4 Bd5 (28... Qxd4 $2 29. Bc3 $17)) 27. Nh2 {[%emt 0:01:19]} (27. Ng4 $17 Nxg4 (27... exf3 $2 28. Nxf6+ gxf6 29. Rxe8 $18) 28. hxg4) 27... Ne5 {[%emt 0:00:15]} 28. Qe2 {[%emt 0:01:23]} (28. Neg4 $142 Nfxg4 29. Nxg4) 28... Nd3 $19 {[%emt 0:01:31]} 29. Rb1 {[%emt 0:03:24]} Bd6 {[%emt 0:09:40]} 30. Nhg4 {[%emt 0:01:17]} Nd5 {[%emt 0:01:48]} 31. Nxh6+ $2 {[%emt 0:08:00]} (31. Nxd5 {might work better.} Bxd5 32. Ne3) 31... gxh6 $19 {[%emt 0:05:28]} 32. Qg4+ {[%emt 0:00:23]} Kh7 {[%emt 0:00:19]} 33. Bxd3 $2 {[%emt 0:01:43]} (33. Qh5 {was necessary.} Rg8 34. Qf5+ Rg6 35. Qxf7+ Rg7 36. Qf5+ Kh8 37. Ra1) 33... Nxe3 $2 {[%emt 0:06:41]} (33... cxd3 $2 34. Qh5 Kg8 35. Qg4+ Kh8 36. Nf5 $19) (33... exd3 $19 34. Qd7 Rg8 35. Qxf7+ Rg7 36. Qf5+ Kh8) 34. Bxe3 $14 {[%emt 0:00:42]} Qe5 {[%emt 0:00:05]} 35. Bc2 {[%emt 0:01:09]} Rg8 {[%emt 0:21:25]} 36. f4 {[%emt 0:01:06]} Qf6 {[%emt 0:00:19]} 37. Qe2 {[%emt 0:02:03]} Qf5 {[%emt 0:01:25]} (37... Bxf4 38. Bxf4 Qxf4 39. Rf1 $16) 38. Ra1 {[%emt 0:00:58]} Bd5 {[%emt 0:02:15]} (38... Qxh3 $2 {is the wrong capture.} 39. Bd4 (39. Rxa8 Rxg2+ 40. Qxg2 Qxe3+ 41. Qf2 Bxf4 $18) 39... Qe6 (39... Bxf4 $2 {perishes.} 40. Bxe4+ Bxe4 41. Qxe4+ Rg6 42. Qxg6+ Kxg6 43. gxh3 $18) 40. Rxa8 Rxa8 41. Qxe4+ (41. Bxe4+ $2 Kg8 $19) 41... Qxe4 42. Bxe4+ f5 43. Bxa8 $18) (38... Bxf4 $2 39. Bxf4 Qxf4 40. Rxa8 $18) 39. Rd1 {[%emt 0:00:20]} Bc7 {[%emt 0:01:49]} 40. Kh1 {[%emt 0:01:15]} Bc6 {[%emt 0:00:26]} 41. Qf2 {[%emt 0:01:19]} Qg6 {[%emt 0:01:34]} 42. Ra1 {[%emt 0:00:44]} Qg3 {[%emt 0:02:46]} (42... Bb7 $11 {keeps the balance.}) 43. Ra7 $16 {[%emt 0:00:04]} Qxf2 {[%emt 0:01:15]} 44. Bxf2 {[%emt 0:00:01]} Bb8 {[%emt 0:00:00]} 45. Ra6 {[%emt 0:00:56]} (45. Rxf7+ $16 Kg6 46. Re7) 45... Bd5 $14 {[%emt 0:00:23]} 46. Be3 {[%emt 0:00:26]} (46. Rf6 $14) 46... Rg3 $11 {[%emt 0:01:30]} 47. Bf2 {[%emt 0:00:14]} Rg6 {[%emt 0:00:34]} 48. Rxg6 {[%emt 0:01:05]} Kxg6 {[%emt 0:00:01]} 49. Be3 {[%emt 0:00:35]} h5 {[%emt 0:01:25]} 50. Bd1 {[%emt 0:00:05]} Bd6 {[%emt 0:01:28]} 51. Kg1 {[%emt 0:00:08]} b4 {[%emt 0:00:09]} 52. Kf2 {[%emt 0:01:13]} h4 {[%emt 0:01:22]} 53. Bg4 {[%emt 0:00:21]} (53. cxb4 $11 Bxb4 54. Bg4) 53... Be6 {[%emt 0:01:13]} (53... f5 $15 54. Bd1 bxc3 55. bxc3 Be7) 54. Be2 {[%emt 0:00:46]} (54. cxb4 $1 $11 Bxb4 55. Be2) 54... Kf5 {[%emt 0:00:49]} ({Better is} 54... b3 $15) 55. Bg4+ $11 {[%emt 0:00:05]} Kf6 {[%emt 0:00:01]} 56. Be2 {[%emt 0:01:09]} Ke7 {[%emt 0:00:01]} 57. g4 {[%emt 0:00:15]} (57. cxb4 $11 Bxb4 58. g3) 57... hxg3+ $15 {[%emt 0:00:13]} 58. Kxg3 {[%emt 0:00:04]} Kf6 (58... b3 $15) 59. Bd4+ {[%emt 0:00:10]} Kf5 {[%emt 0:01:13]} 60. Bg4+ {[%emt 0:00:06]} Kg6 {[%emt 0:00:05]} 61. Be2 {[%emt 0:00:51]} ({White should play} 61. Bxe6 $11 fxe6 62. cxb4 Bxb4 63. Kg4) 61... b3 $15 {[%emt 0:00:35]} 62. Bd1 {[%emt 0:00:46]} Bd5 {[%emt 0:02:15]} 63. Kg4 {[%emt 0:00:45]} f5+ {[%emt 0:00:34]} 64. Kg3 {[%emt 0:00:07]} Kh6 {[%emt 0:00:08]} 65. Be5 $2 {[%emt 0:01:30][%mdl 8192]} (65. Be3 $17) 65... Bc5 $19 {[%emt 0:00:23]} 66. Bf6 {[%emt 0:00:35]} e3 {[%emt 0:01:06]} 67. Be5 {[%emt 0:00:26]} Ba3 {[%emt 0:01:08]} 0-1

[Event "Coimbra Queima Fitas Open 2024"]
[Site "Coimbra"]
[Date "2024.04.28"]
[Round "6.12"]
[White "Bastiao, Tomas De Oliveira"]
[Black "Pinsach Gelabert, Alexandre"]
[Result "1-0"]
[ECO "A21"]
[WhiteElo "1875"]
[BlackElo "2169"]
[Annotator "NA RC"]
[PlyCount "63"]
[EventDate "2024.04.23"]
[EventType "swiss"]
[EventCountry "POR"]
[SourceTitle "playchess.com"]
[Source "ChessBase"]
[SourceQuality "1"]
[TimeControl "5400+30"]

1. c4 {[%emt 0:00:19]} e5 {[%emt 0:00:21]} 2. Nc3 {[%emt 0:00:40]} Bb4 {[%emt 0:00:15]} 3. Nd5 {[%emt 0:00:10]} Bc5 {[%emt 0:00:13]} 4. e3 {[%emt 0:00:05]} c6 {[%emt 0:02:35]} 5. d4 {[%emt 0:00:05]} cxd5 {[%emt 0:15:35]} 6. dxc5 {[%emt 0:00:05]} Qa5+ {[%emt 0:00:52]} 7. Bd2 {[%emt 0:00:07]} Qxc5 {[%emt 0:00:56]} 8. Qg4 {[%emt 0:00:03]} g6 {[%emt 0:08:34]} 9. cxd5 {[%emt 0:00:04]} d6 {[%emt 0:24:57]} 10. Qh4 {[%emt 0:06:40]} Nd7 {[%emt 0:00:52]} 11. Rc1 {[%emt 0:08:21]} Qb6 {[%emt 0:00:15]} 12. Bc3 {[%emt 0:01:51]} Ngf6 {[%emt 0:02:56]} 13. Bc4 {[%emt 0:04:18]} O-O {[%emt 0:01:20]} 14. Ne2 {[%emt 0:02:07]} Ne8 {[%emt 0:01:57]} 15. O-O {[%emt 0:01:44]} Ng7 {[%emt 0:00:46]} 16. Ng3 {[%emt 0:02:32]} f5 {[%emt 0:01:18]} 17. Kh1 {[%emt 0:01:36]} f4 {[%emt 0:11:18]} 18. exf4 {[%emt 0:05:52]} Rxf4 {[%emt 0:00:51]} 19. Qe7 {[%emt 0:00:13]} Rxc4 {[%emt 0:06:08]} 20. f4 {[%emt 0:02:39]} h6 {[%emt 0:08:19]} 21. fxe5 {[%emt 0:01:35]} Rxc3 {[%emt 0:08:24]} 22. bxc3 {[%emt 0:06:29]} Nxe5 {[%emt 0:00:26]} 23. Rf8+ {[%emt 0:00:42]} Kh7 {[%emt 0:00:03]} 24. Ne4 {[%emt 0:00:16]} g5 {[%emt 0:02:09]} 25. Nf6+ {[%emt 0:02:19]} Kg6 {[%emt 0:00:01]} 26. Rg8 {[%emt 0:00:12]} Nf7 {[%emt 0:00:19]} 27. Ne8 {[%emt 0:14:31]} Ne5 {[%emt 0:01:42]} 28. Qxg7+ {[%emt 0:04:58]} Kf5 {[%emt 0:00:02]} 29. Rf8+ {[%emt 0:04:52]} Ke4 {[%emt 0:00:22]} 30. Qh7+ {[%emt 0:00:46]} Kxd5 {[%emt 0:01:01]} 31. Nc7+ {[%emt 0:01:39]} Kc6 {[%emt 0:00:25]} 32. Nxa8 {[%emt 0:00:21]} 1-0

[Event "Coimbra Queima Fitas Open 2024"]
[Site "Coimbra"]
[Date "2024.04.28"]
[Round "6.13"]
[White "Dias, Ivo Rodrigues"]
[Black "Santos, Jose Miguel Sereno"]
[Result "1-0"]
[ECO "B12"]
[WhiteElo "2145"]
[BlackElo "1884"]
[Annotator "NA RC"]
[PlyCount "103"]
[EventDate "2024.04.23"]
[EventType "swiss"]
[EventCountry "POR"]
[SourceTitle "playchess.com"]
[Source "ChessBase"]
[SourceQuality "1"]
[TimeControl "5400+30"]

1. e4 {[%emt 0:07:17]} c6 {[%emt 0:02:02]} 2. d4 {[%emt 0:00:11]} d5 {[%emt 0:00:07]} 3. e5 {[%emt 0:00:21]} c5 {[%emt 0:00:09]} 4. dxc5 {[%emt 0:00:12]} e6 {[%emt 0:00:07]} 5. a3 {[%emt 0:00:03]} Bxc5 {[%emt 0:00:04]} 6. b4 {[%emt 0:00:03]} Be7 {[%emt 0:00:02]} 7. Nf3 {[%emt 0:00:04]} Nc6 {[%emt 0:00:25]} 8. Bb2 {[%emt 0:04:27]} a6 {[%emt 0:05:01]} 9. Bd3 {[%emt 0:02:02]} h5 {[%emt 0:00:29]} 10. Nbd2 {[%emt 0:00:26]} Nh6 {[%emt 0:00:08]} 11. Qe2 {[%emt 0:00:42]} Qc7 {[%emt 0:02:24]} 12. O-O {[%emt 0:03:47]} O-O {[%emt 0:14:26]} 13. Nb3 {[%emt 0:06:05]} g6 {[%emt 0:09:51]} 14. Rfe1 {[%emt 0:00:28]} Re8 {[%emt 0:01:47]} 15. Nbd2 {[%emt 0:01:25]} Nf5 {[%emt 0:03:04]} 16. c4 {[%emt 0:02:33]} dxc4 {[%emt 0:01:28]} 17. Nxc4 {[%emt 0:01:34]} Rd8 {[%emt 0:04:52]} 18. Rac1 {[%emt 0:00:17]} Bf8 {[%emt 0:00:46]} 19. h3 {[%emt 0:02:01]} Bh6 {[%emt 0:18:16]} 20. Rc2 {[%emt 0:00:28]} Nfe7 {[%emt 0:03:25]} 21. Bc1 {[%emt 0:14:35]} Bxc1 {[%emt 0:01:08]} 22. Rexc1 {[%emt 0:02:34]} Nd5 {[%emt 0:00:10]} 23. Be4 {[%emt 0:01:03]} Qe7 {[%emt 0:00:30]} 24. Rd2 {[%emt 0:11:05]} Rb8 {[%emt 0:05:42]} 25. Qd1 {[%emt 0:14:54]} b5 {[%emt 0:13:22]} 26. Bxd5 {[%emt 0:00:30]} exd5 {[%emt 0:00:09]} 27. Ne3 {[%emt 0:00:07]} Nxe5 {[%emt 0:00:19]} 28. Nxd5 {[%emt 0:00:08]} Nxf3+ {[%emt 0:01:16]} 29. Qxf3 {[%emt 0:00:09]} Qg5 {[%emt 0:01:01]} 30. Nf6+ {[%emt 0:07:34]} Kg7 {[%emt 0:00:41]} 31. Ne4 {[%emt 0:01:26]} Qe7 {[%emt 0:01:21]} 32. Qc3+ {[%emt 0:00:22]} Kh7 {[%emt 0:04:11]} 33. Nf6+ {[%emt 0:03:04]} Kh6 {[%emt 0:00:12]} 34. Rxd8 {[%emt 0:00:33]} Qxd8 {[%emt 0:00:05]} 35. Qe3+ {[%emt 0:00:19]} Kg7 {[%emt 0:00:48]} 36. Qe5 {[%emt 0:00:15]} Qxf6 {[%emt 0:01:55]} 37. Qxb8 {[%emt 0:00:11]} Bxh3 {[%emt 0:00:03]} 38. Qg3 {[%emt 0:00:56]} Be6 {[%emt 0:00:43]} 39. Qc3 {[%emt 0:00:11]} Bc4 {[%emt 0:00:08]} 40. Qxf6+ {[%emt 0:00:47]} Kxf6 {[%emt 0:00:02]} 41. Rd1 {[%emt 0:00:01]} Ke7 {[%emt 0:00:14]} 42. Kh2 {[%emt 0:00:18]} f6 {[%emt 0:01:04]} 43. Kg3 {[%emt 0:00:04]} g5 {[%emt 0:00:14]} 44. f4 {[%emt 0:01:27]} h4+ {[%emt 0:00:05]} 45. Kf2 {[%emt 0:00:12]} g4 {[%emt 0:00:07]} 46. Rh1 {[%emt 0:00:17]} h3 {[%emt 0:00:31]} 47. gxh3 {[%emt 0:00:07]} gxh3 {[%emt 0:00:02]} 48. Rxh3 {[%emt 0:00:08]} Ke6 {[%emt 0:00:04]} 49. Ke3 {[%emt 0:00:12]} Kd6 {[%emt 0:00:21]} 50. Kd4 {[%emt 0:01:12]} Ba2 {[%emt 0:00:49]} 51. Rh8 {[%emt 0:00:19]} Ke6 {[%emt 0:01:21]} 52. Ra8 {[%emt 0:00:23]} 1-0

[Event "Coimbra Queima Fitas Open 2024"]
[Site "Coimbra"]
[Date "2024.04.28"]
[Round "6.14"]
[White "Ryabukhin, Roman"]
[Black "Silva, Reinaldo David Batis"]
[Result "1-0"]
[ECO "B50"]
[WhiteElo "2047"]
[BlackElo "1856"]
[Annotator "NA RC"]
[PlyCount "51"]
[EventDate "2024.04.23"]
[EventType "swiss"]
[EventCountry "POR"]
[SourceTitle "playchess.com"]
[Source "ChessBase"]
[SourceQuality "1"]
[TimeControl "5400+30"]

1. e4 {[%emt 0:00:01]} c5 {[%emt 0:01:07]} 2. Nf3 d6 {[%emt 0:00:26]} 3. c3 {[%emt 0:00:25]} d5 {[%emt 0:01:58]} 4. exd5 {[%emt 0:00:02]} Qxd5 {[%emt 0:00:13]} 5. Na3 {[%emt 0:00:05]} Bd7 {[%emt 0:13:39]} 6. Bc4 {[%emt 0:07:38]} Qe4+ {[%emt 0:07:29]} 7. Be2 {[%emt 0:00:59]} Bc6 {[%emt 0:14:40]} 8. O-O {[%emt 0:01:12]} Nd7 {[%emt 0:02:31]} 9. Nb5 {[%emt 0:04:08]} Bxb5 {[%emt 0:05:16]} 10. Bxb5 {[%emt 0:00:06]} O-O-O {[%emt 0:01:23]} 11. Re1 {[%emt 0:06:09]} Qd5 {[%emt 0:01:00]} 12. d3 {[%emt 0:12:24]} Nb6 {[%emt 0:05:01]} 13. Re5 {[%emt 0:01:48]} Qd6 {[%emt 0:00:30]} 14. d4 {[%emt 0:00:30]} f6 {[%emt 0:08:19]} 15. Re4 {[%emt 0:05:25]} e5 {[%emt 0:04:28]} 16. Qc2 {[%emt 0:01:46]} Ne7 {[%emt 0:07:17]} 17. Be3 {[%emt 0:02:24]} c4 {[%emt 0:02:10]} 18. dxe5 {[%emt 0:00:37]} fxe5 {[%emt 0:05:03]} 19. Nxe5 {[%emt 0:00:14]} Qf6 {[%emt 0:03:39]} 20. Bxb6 {[%emt 0:00:40]} axb6 {[%emt 0:00:40]} 21. Rxc4+ {[%emt 0:00:29]} Kb8 {[%emt 0:03:45]} 22. Nd7+ {[%emt 0:00:06]} Rxd7 {[%emt 0:00:04]} 23. Bxd7 {[%emt 0:00:03]} Nc6 {[%emt 0:00:27]} 24. Bxc6 {[%emt 0:00:02]} bxc6 {[%emt 0:00:06]} 25. Qe4 {[%emt 0:00:28]} Bc5 {[%emt 0:00:53]} 26. Qf4+ {[%emt 0:00:09]} 1-0

[Event "Coimbra Queima Fitas Open 2024"]
[Site "Coimbra"]
[Date "2024.04.28"]
[Round "6.15"]
[White "Almeida, Joao Pedro Dias"]
[Black "Costa, Goncalo Martins Paul"]
[Result "1-0"]
[ECO "B15"]
[WhiteElo "2006"]
[BlackElo "1855"]
[Annotator "NA RC"]
[PlyCount "105"]
[EventDate "2024.04.23"]
[EventType "swiss"]
[EventCountry "POR"]
[SourceTitle "playchess.com"]
[Source "ChessBase"]
[SourceQuality "1"]
[TimeControl "5400+30"]

1. e4 {[%emt 0:00:08]} c6 {[%emt 0:01:33]} 2. d4 {[%emt 0:00:28]} d5 {[%emt 0:00:06]} 3. Nc3 {[%emt 0:00:06]} dxe4 {[%emt 0:00:10]} 4. Nxe4 {[%emt 0:00:07]} Nf6 {[%emt 0:00:26]} 5. Nxf6+ {[%emt 0:00:06]} exf6 {[%emt 0:00:06]} 6. c3 {[%emt 0:00:06]} Bd6 {[%emt 0:00:23]} 7. Bd3 {[%emt 0:00:06]} O-O {[%emt 0:00:33]} 8. Qc2 {[%emt 0:00:07]} Re8+ {[%emt 0:00:16]} 9. Ne2 {[%emt 0:00:04]} h5 {[%emt 0:00:43]} 10. Be3 {[%emt 0:00:05]} Nd7 {[%emt 0:01:39]} 11. O-O-O {[%emt 0:00:10]} Nf8 {[%emt 0:00:36]} 12. Ng3 {[%emt 0:01:34]} g6 {[%emt 0:19:55]} 13. Ne4 {[%emt 0:10:08]} Be7 {[%emt 0:04:16]} 14. h3 {[%emt 0:02:36]} f5 {[%emt 0:03:05]} 15. Nd2 {[%emt 0:01:12]} Bg5 {[%emt 0:01:29]} 16. Nc4 {[%emt 0:01:29]} b5 {[%emt 0:02:13]} 17. Ne5 {[%emt 0:00:00]} Bxe3+ 18. fxe3 {[%emt 0:02:48]} Qc7 {[%emt 0:07:46]} 19. Rde1 {[%emt 0:00:30]} f6 {[%emt 0:00:30]} 20. Nf3 {[%emt 0:00:30]} Be6 {[%emt 0:00:30]} 21. Kb1 {[%emt 0:00:08]} Qf7 {[%emt 0:11:11]} 22. a3 {[%emt 0:01:03]} Bd5 23. e4 {[%emt 0:00:41]} fxe4 {[%emt 0:05:06]} 24. Bxe4 {[%emt 0:00:07]} Bxe4 {[%emt 0:00:09]} 25. Rxe4 {[%emt 0:00:07]} Rxe4 {[%emt 0:00:32]} 26. Qxe4 {[%emt 0:00:13]} Qe6 {[%emt 0:00:18]} 27. Re1 {[%emt 0:01:08]} Re8 {[%emt 0:03:18]} 28. Qf4 {[%emt 0:00:50]} Qf5+ {[%emt 0:00:18]} 29. Qxf5 {[%emt 0:00:09]} Rxe1+ {[%emt 0:00:07]} 30. Nxe1 {[%emt 0:00:05]} gxf5 31. g3 {[%emt 0:01:27]} Ng6 {[%emt 0:03:15]} 32. Nd3 {[%emt 0:01:15]} h4 {[%emt 0:03:57]} 33. gxh4 {[%emt 0:00:04]} Nxh4 {[%emt 0:00:05]} 34. Kc2 {[%emt 0:00:49]} Kf7 {[%emt 0:01:51]} 35. Nf4 {[%emt 0:00:29]} Ke7 {[%emt 0:01:23]} 36. Kd3 {[%emt 0:00:18]} Nf3 {[%emt 0:02:26]} 37. Ke3 {[%emt 0:00:30]} Ng5 {[%emt 0:01:58]} 38. h4 {[%emt 0:00:16]} Nf7 {[%emt 0:00:44]} 39. Nh5 {[%emt 0:00:30]} Nh6 {[%emt 0:00:30]} 40. Kf4 {[%emt 0:00:30]} Kf7 {[%emt 0:01:22]} 41. Ng3 {[%emt 0:00:17]} Ke6 {[%emt 0:00:19]} 42. Nf1 {[%emt 0:00:03]} Kf7 {[%emt 0:00:51]} 43. Ne3 {[%emt 0:00:13]} Kg6 {[%emt 0:00:18]} 44. b3 {[%emt 0:00:12]} Nf7 {[%emt 0:01:22]} 45. Nxf5 {[%emt 0:00:10]} Kh5 {[%emt 0:00:30]} 46. Ne7 {[%emt 0:00:30]} Nd8 {[%emt 0:01:59]} 47. Kf5 {[%emt 0:00:35]} Kxh4 {[%emt 0:00:30]} 48. c4 {[%emt 0:00:30]} Nb7 {[%emt 0:04:03]} 49. c5 {[%emt 0:01:34]} Nd8 {[%emt 0:02:20]} 50. Kxf6 {[%emt 0:00:30]} Kg4 {[%emt 0:00:32]} 51. Nxc6 {[%emt 0:00:07]} Nxc6 {[%emt 0:00:15]} 52. d5 {[%emt 0:00:02]} Na5 {[%emt 0:02:10]} 53. c6 1-0

[Event "Coimbra Queima Fitas Open 2024"]
[Site "Coimbra"]
[Date "2024.04.28"]
[Round "6.16"]
[White "Bernardo, Daniel Madureira"]
[Black "Morais, Mario Martins Freita"]
[Result "1/2-1/2"]
[ECO "B30"]
[WhiteElo "2005"]
[BlackElo "1835"]
[Annotator "NA RC"]
[PlyCount "106"]
[EventDate "2024.04.23"]
[EventType "swiss"]
[EventCountry "POR"]
[SourceTitle "playchess.com"]
[Source "ChessBase"]
[SourceQuality "1"]
[TimeControl "5400+30"]

1. e4 {[%emt 0:05:08]} c5 {[%emt 0:01:06]} 2. Nf3 {[%emt 0:00:24]} Nc6 {[%emt 0:00:06]} 3. c3 {[%emt 0:00:54]} d5 {[%emt 0:01:10]} 4. e5 {[%emt 0:01:20]} Qc7 {[%emt 0:05:47]} 5. d4 {[%emt 0:07:10]} Bg4 {[%emt 0:01:52]} 6. dxc5 {[%emt 0:05:54]} e6 {[%emt 0:00:24]} 7. Be3 {[%emt 0:00:50]} Bxf3 {[%emt 0:10:09]} 8. Qxf3 {[%emt 0:04:08]} Nge7 {[%emt 0:03:43]} 9. Bb5 {[%emt 0:02:34]} Ng6 {[%emt 0:03:49]} 10. O-O {[%emt 0:09:05]} Be7 {[%emt 0:01:51]} 11. Bd4 {[%emt 0:05:00]} O-O {[%emt 0:00:23]} 12. Bxc6 {[%emt 0:00:42]} Qxc6 {[%emt 0:00:48]} 13. b4 {[%emt 0:01:48]} f6 {[%emt 0:03:17]} 14. Qe3 {[%emt 0:06:05]} fxe5 {[%emt 0:00:29]} 15. Bxe5 {[%emt 0:00:09]} Nxe5 {[%emt 0:00:53]} 16. Qxe5 {[%emt 0:00:05]} Rf5 {[%emt 0:00:06]} 17. Qe3 {[%emt 0:02:37]} e5 {[%emt 0:04:01]} 18. Nd2 {[%emt 0:04:04]} Bg5 {[%emt 0:13:44]} 19. Qe2 {[%emt 0:04:50]} Raf8 {[%emt 0:05:40]} 20. Rad1 {[%emt 0:03:22]} Qh6 {[%emt 0:06:25]} 21. f3 {[%emt 0:12:56]} Be3+ {[%emt 0:16:00]} 22. Kh1 {[%emt 0:00:06]} Bf4 {[%emt 0:00:36]} 23. g4 {[%emt 0:01:27]} R5f7 {[%emt 0:02:17]} 24. c4 {[%emt 0:01:54]} Bxd2 {[%emt 0:03:40]} 25. Qxd2 {[%emt 0:07:43]} Qxd2 {[%emt 0:01:47]} 26. Rxd2 {[%emt 0:00:11]} dxc4 {[%emt 0:00:10]} 27. Kg2 {[%emt 0:02:01]} Rf4 {[%emt 0:01:33]} 28. Re2 {[%emt 0:00:47]} c3 {[%emt 0:00:19]} 29. Rxe5 {[%emt 0:03:53]} Rxb4 {[%emt 0:00:08]} 30. Rc1 {[%emt 0:00:20]} Rb2+ {[%emt 0:03:32]} 31. Kg3 {[%emt 0:01:09]} Rxa2 {[%emt 0:02:11]} 32. Rxc3 {[%emt 0:00:15]} Rd2 {[%emt 0:00:05]} 33. h4 {[%emt 0:04:19]} Rd7 {[%emt 0:00:05]} 34. Ra3 {[%emt 0:00:47]} a6 {[%emt 0:00:25]} 35. c6 {[%emt 0:00:31]} bxc6 {[%emt 0:00:36]} 36. Rc5 {[%emt 0:01:19]} Rd6 {[%emt 0:00:16]} 37. Rxa6 {[%emt 0:01:21]} Rd3 {[%emt 0:00:11]} 38. Rf5 {[%emt 0:00:03]} Rxf5 {[%emt 0:00:32]} 39. gxf5 {[%emt 0:00:04]} Rc3 {[%emt 0:00:37]} 40. Kf4 {[%emt 0:00:45]} Kf7 {[%emt 0:00:33]} 41. Kg4 {[%emt 0:01:38]} Kf6 {[%emt 0:00:22]} 42. Ra8 {[%emt 0:00:47]} Rc4+ {[%emt 0:01:25]} 43. f4 {[%emt 0:00:14]} h5+ {[%emt 0:00:42]} 44. Kxh5 {[%emt 0:00:19]} Rxf4 {[%emt 0:00:09]} 45. Rf8+ {[%emt 0:00:32]} Ke7 {[%emt 0:00:14]} 46. Rc8 {[%emt 0:00:13]} Rxf5+ {[%emt 0:01:31]} 47. Kg6 {[%emt 0:00:12]} Rf4 {[%emt 0:00:12]} 48. h5 {[%emt 0:00:32]} Rg4+ {[%emt 0:00:03]} 49. Kf5 {[%emt 0:00:31]} Rc4 {[%emt 0:00:44]} 50. Rc7+ {[%emt 0:00:07]} Kf8 {[%emt 0:00:22]} 51. Kg5 {[%emt 0:00:20]} Kg8 {[%emt 0:00:22]} 52. Kg6 {[%emt 0:01:58]} Rg4+ {[%emt 0:00:05]} 53. Kf5 {[%emt 0:00:06]} Rc4 {[%emt 0:00:08]} 1/2-1/2

[Event "Coimbra Queima Fitas Open 2024"]
[Site "Coimbra"]
[Date "2024.04.28"]
[Round "6.17"]
[White "Duque, Raquel Dos Santos"]
[Black "Faryma, Matviy"]
[Result "0-1"]
[ECO "A25"]
[WhiteElo "1870"]
[BlackElo "1993"]
[Annotator "NA RC"]
[PlyCount "78"]
[EventDate "2024.04.23"]
[EventType "swiss"]
[EventCountry "POR"]
[SourceTitle "playchess.com"]
[Source "ChessBase"]
[SourceQuality "1"]
[TimeControl "5400+30"]

1. c4 {[%emt 0:04:11]} e5 {[%emt 0:01:12]} 2. Nc3 {[%emt 0:00:14]} Nc6 {[%emt 0:00:22]} 3. g3 {[%emt 0:00:15]} g6 {[%emt 0:00:32]} 4. Bg2 {[%emt 0:00:36]} Bg7 {[%emt 0:00:13]} 5. Nf3 {[%emt 0:01:12]} Nge7 {[%emt 0:00:46]} 6. O-O {[%emt 0:00:47]} O-O {[%emt 0:00:31]} 7. Rb1 {[%emt 0:02:20]} a5 {[%emt 0:01:47]} 8. e4 {[%emt 0:03:34]} d6 {[%emt 0:01:51]} 9. d3 {[%emt 0:00:09]} h6 {[%emt 0:01:54]} 10. a3 {[%emt 0:04:58]} g5 {[%emt 0:03:47]} 11. b4 {[%emt 0:05:59]} axb4 {[%emt 0:00:26]} 12. axb4 {[%emt 0:00:06]} Ng6 {[%emt 0:00:10]} 13. Ne2 {[%emt 0:09:24]} f5 {[%emt 0:04:41]} 14. b5 {[%emt 0:02:57]} Nce7 {[%emt 0:00:47]} 15. Nc3 {[%emt 0:01:11]} f4 {[%emt 0:03:40]} 16. Qb3 {[%emt 0:02:43]} Be6 {[%emt 0:02:27]} 17. Nd5 {[%emt 0:00:40]} b6 {[%emt 0:01:00]} 18. h3 {[%emt 0:02:23]} fxg3 {[%emt 0:21:47]} 19. fxg3 {[%emt 0:00:11]} Qd7 {[%emt 0:00:03]} 20. Kh2 {[%emt 0:05:47]} Rf7 {[%emt 0:03:03]} 21. Bb2 {[%emt 0:02:31]} Raf8 {[%emt 0:02:34]} 22. d4 {[%emt 0:01:17]} g4 {[%emt 0:03:17]} 23. hxg4 {[%emt 0:02:41]} Nxd5 {[%emt 0:00:33]} 24. cxd5 {[%emt 0:01:18]} Bxg4 {[%emt 0:00:03]} 25. dxe5 {[%emt 0:00:45]} dxe5 {[%emt 0:00:55]} 26. Rbc1 {[%emt 0:05:13]} Bf6 {[%emt 0:04:50]} 27. Ba3 {[%emt 0:09:37]} Be7 {[%emt 0:00:44]} 28. Rc6 {[%emt 0:02:13]} Bd6 {[%emt 0:00:22]} 29. Bxd6 {[%emt 0:00:35]} cxd6 {[%emt 0:00:05]} 30. Rxb6 {[%emt 0:01:49]} h5 {[%emt 0:00:35]} 31. Qa3 {[%emt 0:06:33]} Rf6 {[%emt 0:00:54]} 32. Nd2 {[%emt 0:00:47]} h4 {[%emt 0:00:46]} 33. Rxf6 {[%emt 0:01:26]} hxg3+ {[%emt 0:00:30]} 34. Kxg3 {[%emt 0:02:09]} Rxf6 {[%emt 0:00:05]} 35. Qa8+ {[%emt 0:00:04]} Rf8 {[%emt 0:00:18]} 36. Qb7 {[%emt 0:00:05]} Qd8 {[%emt 0:00:08]} 37. Kh2 {[%emt 0:02:20]} Qh4+ {[%emt 0:00:17]} 38. Kg1 {[%emt 0:00:04]} Qf2+ {[%emt 0:00:52]} 39. Kh2 {[%emt 0:02:13]} Nf4 {[%emt 0:00:16]} 0-1